bitfinex/quotes_SOLUSD_20220118
["timestamp","ask_amount","ask_price","bid_price","bid_amount"]
[1642473261554,6.26,140.12,140.11,3.6106956]
[1642473264778,12.32439994,140.12,140.11,3.6106956]
[1642473265379,6.26,140.12,140.11,3.6106956]
[1642473265579,0.26,140.12,140.11,3.6106956]
[1642473265780,6.26,140.12,140.11,3.6106956]
[1642473266880,6.51,140.12,140.11,3.6106956]
[1642473268682,12.57439994,140.12,140.11,3.6106956]
[1642473270486,6.51,140.12,140.11,3.6106956]
[1642473273693,12.57439994,140.12,140.11,3.6106956]
[1642473274695,15.42839994,140.12,140.11,3.6106956]
[1642473278199,26.13639994,140.12,140.11,3.6106956]
[1642473279699,26.13639994,140.12,140.06,23.7635]
[1642473279900,13.8141,140.11,140.04,2.854]
[1642473280301,19.8141,140.11,140.04,2.854]
[1642473280699,19.8141,140.11,140.05,40.09914133]
[1642473281098,21.84539963,140.11,140.05,40.09914133]
[1642473282199,19.8141,140.11,140.05,40.09914133]
[1642473282600,9.105,140.11,140.05,40.09914133]
[1642473283201,11.13629963,140.11,140.05,40.09914133]
[1642473283601,11.13629963,140.11,140.09,0.39373047]
[1642473283802,11.39629963,140.11,140.09,0.39373047]
[1642473284704,22.10509963,140.11,140.09,0.39373047]
[1642473285704,6.06439994,140.1,140.09,0.39373047]
[1642473285904,12.31439994,140.1,140.09,0.39373047]
[1642473286803,15.16939994,140.1,140.09,0.39373047]
[1642473287406,15.42939994,140.1,140.09,0.39373047]
[1642473288105,17.46069957,140.1,140.09,0.39373047]
[1642473288807,28.17029957,140.1,140.09,0.39373047]
[1642473293235,25.31529957,140.1,140.09,0.39373047]
[1642473294540,61.61355869,140.1,140.09,0.39373047]
[1642473295039,25.31529957,140.1,140.09,0.39373047]
[1642473295640,14.60569957,140.1,140.09,0.39373047]
[1642473295841,14.35569957,140.1,140.09,0.39373047]
[1642473297041,17.21069957,140.1,140.09,0.39373047]
[1642473297246,17.46069957,140.1,140.09,0.39373047]
[1642473297645,28.17039957,140.1,140.09,0.39373047]
[1642473298847,63.18128231,140.1,140.09,0.39373047]
[1642473304553,28.17039957,140.1,140.09,0.39373047]
[1642473305352,28.17039957,140.1,140.03,24.3058]
[1642473305555,10.7112,140.08,140.03,24.3058]
[1642473305753,0.25,140.07,140.03,24.3058]
[1642473306655,34.23926801,140.07,140.03,24.3058]
[1642473306854,50.95146801,140.07,140.01,23.5348]
[1642473307754,52.98276764,140.07,140.01,23.5348]
[1642473308354,50.95146801,140.07,140.01,23.5348]
[1642473308557,122.03146801,140.07,140.01,23.5348]
[1642473308857,124.06276764,140.07,140.01,23.5348]
[1642473309057,90.07349963,140.07,140.01,23.5348]
[1642473309257,90.33349963,140.07,140.01,23.5348]
[1642473309457,13.5689,140.06,140.01,23.5348]
[1642473309859,0.25,140.05,140.01,23.5348]
[1642473312068,0.25,140.05,140.0,48.9664616]
[1642473312468,10.9634,140.05,140.0,48.9664616]
[1642473312867,16.9634,140.05,140.0,48.9664616]
[1642473313270,17.2234,140.05,140.0,48.9664616]
[1642473313470,2.856,140.04,140.0,48.9664616]
[1642473313868,0.25,140.03,139.98,2.03081267]
[1642473314068,71.33,140.03,139.98,2.03081267]
[1642473314269,2.857,140.02,139.98,2.03081267]
[1642473314668,0.25,140.01,139.94,2.03081267]
[1642473314868,2.857,140.0,139.95,45.19982159]
[1642473315070,10.7181,139.99,139.95,45.19982159]
[1642473315387,2.857,139.98,139.95,45.19982159]
[1642473315687,6.06439994,139.97,139.95,45.19982159]
[1642473315889,12.31439994,139.97,139.95,45.19982159]
[1642473316088,6.31439994,139.97,139.95,45.19982159]
[1642473316290,2.03129963,140.0,139.95,45.19982159]
[1642473316689,0.25,139.99,139.95,45.19982159]
[1642473317889,3.107,139.99,139.95,45.19982159]
[1642473318288,9.107,139.99,139.95,45.19982159]
[1642473319792,6.25,139.99,139.95,45.19982159]
[1642473320191,0.25,139.99,139.95,45.19982159]
[1642473320592,16.9773,140.0,139.95,45.19982159]
[1642473320795,6.26,140.0,139.95,45.19982159]
[1642473321195,0.26,140.0,139.95,45.19982159]
[1642473321394,6.0,140.0,139.96,2.857]
[1642473321795,79.95799845,140.02,139.96,2.857]
[1642473321999,3.107,140.01,139.95,70.63102159]
[1642473322500,9.107,140.01,139.95,70.63102159]
[1642473323205,19.8236,140.01,139.95,70.63102159]
[1642473323400,19.8236,140.01,139.95,67.77402159]
[1642473324501,92.93489963,140.01,139.95,67.77402159]
[1642473324701,92.93489963,140.01,139.95,45.19982159]
[1642473325101,93.19489963,140.01,139.95,45.19982159]
[1642473325302,93.19489963,140.01,139.92,25.55001267]
[1642473325501,23.2218,140.0,139.92,35.78001267]
[1642473325701,10.7189,139.98,139.92,35.78001267]
[1642473325901,3.108,139.97,139.92,35.78001267]
[1642473326302,9.108,139.97,139.93,41.74577227]
[1642473328902,9.368,139.97,139.93,41.74577227]
[1642473330004,6.25,139.97,139.93,41.74577227]
[1642473330805,0.25,139.97,139.93,41.74577227]
[1642473331007,6.25,139.97,139.93,41.74577227]
[1642473331206,6.0,139.97,139.93,41.74577227]
[1642473331404,0.25,139.96,139.93,41.74577227]
[1642473332809,0.25,139.98,139.93,41.74577227]
[1642473333010,2.858,139.97,139.93,41.74577227]
[1642473333409,0.25,139.96,139.93,41.74577227]
[1642473334413,0.25,139.97,139.93,41.74577227]
[1642473334612,8.858,139.98,139.93,41.74577227]
[1642473334813,6.0,139.98,139.93,41.74577227]
[1642473335312,19.836,139.99,139.93,41.74577227]
[1642473335713,8.858,139.99,139.93,41.74577227]
[1642473336012,2.858,139.99,139.93,41.74577227]
[1642473336212,8.858,139.99,139.93,41.74577227]
[1642473336612,2.858,139.99,139.93,41.74577227]
[1642473337215,0.25,139.98,139.93,41.74577227]
[1642473337511,0.25,139.98,139.93,44.60377227]
[1642473337913,6.25,139.99,139.93,44.60377227]
[1642473338115,2.857,139.98,139.93,41.74577227]
[1642473338314,6.0,139.98,139.94,2.858]
[1642473338613,0.25,139.99,139.94,2.858]
[1642473338814,0.25,139.99,139.94,24.3874]
[1642473344749,0.25,139.99,139.93,41.74577227]
[1642473344949,0.25,139.99,139.93,51.97577227]
[1642473345550,10.968,139.99,139.93,51.97577227]
[1642473345749,16.968,139.99,139.93,51.97577227]
[1642473346748,44.72434247,139.98,139.93,51.97577227]
[1642473346950,13.5777,139.97,139.93,51.97577227]
[1642473347151,13.8277,139.97,139.93,51.97577227]
[1642473347350,19.8277,139.97,139.93,51.97577227]
[1642473347552,19.8277,139.97,139.93,10.23]
[1642473349154,20.0877,139.97,139.94,45.02549007]
[1642473350556,91.1677,139.97,139.9,24.94111267]
[1642473350758,91.1677,139.97,139.9,49.50291267]
[1642473351457,91.1677,139.97,139.9,47.4721]
[1642473351655,91.1677,139.97,139.91,48.77584251]
[1642473357368,126.63312482,139.97,139.91,48.77584251]
[1642473357865,91.1677,139.97,139.91,48.77584251]
[1642473358266,91.1677,139.97,139.9,24.5618]
[1642473358466,91.1677,139.97,139.88,2.03081267]
[1642473358667,81.8036,139.93,139.88,2.03081267]
[1642473358867,0.25,139.92,139.88,2.03081267]
[1642473359067,2.859,139.91,139.88,2.03081267]
[1642473359268,43.51005673,139.9,139.88,2.03081267]
[1642473359567,2.859,139.89,139.88,2.03081267]
[1642473359767,10.9768,139.89,139.88,2.03081267]
[1642473359966,16.9768,139.89,139.83,52.67279872]
[1642473360167,0.25,139.88,139.83,49.81379872]
[1642473360412,0.25,139.88,139.83,2.03081267]
[1642473361073,2.86,139.87,139.82,2.11044169]
[1642473361272,0.25,139.86,139.82,2.11044169]
[1642473362172,0.25,139.86,139.82,0.07962902]
[1642473362573,10.979,139.86,139.82,0.07962902]
[1642473362774,16.979,139.86,139.82,0.07962902]
[1642473363385,6.25,139.86,139.82,0.07962902]
[1642473364686,0.25,139.86,139.82,0.07962902]
[1642473364886,6.25,139.86,139.82,0.07962902]
[1642473365285,0.25,139.86,139.82,0.07962902]
[1642473365486,6.25,139.86,139.82,0.07962902]
[1642473366091,0.51,139.86,139.82,0.07962902]
[1642473366286,6.25,139.86,139.82,0.07962902]
[1642473366688,2.86,139.87,139.82,0.07962902]
[1642473366889,1.66582314,139.88,139.83,2.86]
[1642473367491,1.66582314,139.88,139.84,44.15811609]
[1642473367904,1.92582314,139.88,139.84,44.15811609]
[1642473368510,7.92582314,139.88,139.84,54.88181609]
[1642473368712,1.92582314,139.88,139.84,54.88181609]
[1642473368912,7.92582314,139.88,139.84,54.88181609]
[1642473369113,1.92582314,139.88,139.84,54.88181609]
[1642473369516,7.92582314,139.88,139.84,54.88181609]
[1642473370015,7.92582314,139.88,139.85,2.86]
[1642473370415,7.92582314,139.88,139.86,6.06439994]
[1642473371317,1.92582314,139.88,139.86,6.06439994]
[1642473372217,1.92582314,139.88,139.87,42.42135905]
[1642473373423,1.66582314,139.88,139.87,42.42135905]
[1642473377326,1.92582314,139.88,139.87,42.42135905]
[1642473377728,1.92582314,139.88,139.86,6.06439994]
[1642473378126,7.92582314,139.88,139.86,6.06439994]
[1642473378728,45.08721118,139.88,139.84,2.859]
[1642473378927,73.94,139.87,139.84,2.859]
[1642473379153,73.94,139.87,139.82,45.45530768]
[1642473379451,73.94,139.87,139.82,45.38481871]
[1642473380053,73.94,139.87,139.82,43.35400604]
[1642473381254,74.2,139.87,139.82,43.35400604]
[1642473381652,80.2,139.87,139.82,43.35400604]
[1642473381853,80.2,139.87,139.82,0.00914005]
[1642473382356,90.9281,139.87,139.82,0.00914005]
[1642473385459,115.2092,139.87,139.82,0.00914005]
[1642473391671,114.9492,139.87,139.82,0.00914005]
[1642473392171,104.2211,139.87,139.82,0.00914005]
[1642473392371,77.08,139.87,139.82,0.00914005]
[1642473393672,87.8085,139.87,139.82,0.00914005]
[1642473393876,90.6685,139.87,139.82,0.00914005]
[1642473394974,87.8085,139.87,139.82,2.86914005]
[1642473395276,88.0685,139.87,139.82,2.86914005]
[1642473395779,16.9885,139.87,139.82,2.86914005]
[1642473395978,16.9885,139.87,139.82,0.00914005]
[1642473396277,6.26,139.87,139.82,0.00914005]
[1642473396678,0.26,139.87,139.82,0.00914005]
[1642473396980,4.52582314,139.88,139.82,0.00914005]
[1642473396981,75.60582314,139.88,139.82,0.00914005]
[1642473397179,81.86582314,139.88,139.82,0.00914005]
[1642473397582,92.59372314,139.88,139.82,0.00914005]
[1642473399812,21.25372314,139.88,139.82,0.00914005]
[1642473400811,18.39372314,139.88,139.82,2.86914005]
[1642473401912,18.39372314,139.88,139.82,4.89995272]
[1642473402113,7.66582314,139.88,139.82,4.89995272]
[1642473403514,7.92582314,139.88,139.82,4.89995272]
[1642473404123,7.92582314,139.88,139.82,24.76045272]
[1642473405117,7.92582314,139.88,139.82,27.62045272]
[1642473405819,7.92582314,139.88,139.82,25.58964005]
[1642473407521,7.92582314,139.88,139.82,27.62045272]
[1642473408022,1.92582314,139.88,139.82,27.62045272]
[1642473408224,1.92582314,139.88,139.82,38.34585272]
[1642473409025,1.92582314,139.88,139.83,2.03081267]
[1642473409224,1.92582314,139.88,139.84,46.03304436]
[1642473409825,2.86,139.91,139.84,56.75704436]
[1642473410025,2.03129963,139.93,139.85,10.23]
[1642473410225,4.07301386,139.96,139.86,2.859]
[1642473410426,4.07301386,139.96,139.87,10.23]
[1642473410624,4.07301386,139.96,139.88,2.858]
[1642473410827,2.858,139.95,139.88,33.5367]
[1642473411032,2.858,139.95,139.88,22.8158]
[1642473411033,73.938,139.95,139.88,22.8158]
[1642473411427,96.9699,139.95,139.88,22.8158]
[1642473411627,102.9699,139.95,139.88,22.8158]
[1642473412529,113.6923,139.95,139.87,56.27448589]
[1642473414129,113.6923,139.95,139.88,22.6567]
[1642473414630,8.858,139.95,139.88,22.6567]
[1642473414828,8.858,139.95,139.89,2.858]
[1642473414829,6.0,139.95,139.89,2.858]
[1642473415227,2.858,139.96,139.89,2.858]
[1642473415627,2.858,139.96,139.9,37.07678124]
[1642473415827,2.858,139.96,139.9,47.79608124]
[1642473418031,1.47375727,139.97,139.9,47.79608124]
[1642473418832,1.47375727,139.97,139.9,71.06808124]
[1642473419240,1.47375727,139.97,139.91,2.858]
[1642473419436,1.47375727,139.97,139.91,13.5761]
[1642473423841,1.47375727,139.97,139.92,35.95289759]
[1642473424040,1.47375727,139.97,139.92,46.30823091]
[1642473424460,1.47375727,139.97,139.92,68.99383091]
[1642473426463,1.47375727,139.97,139.92,79.71163091]
[1642473427865,2.858,139.98,139.92,79.71163091]
[1642473428065,6.93101386,140.01,139.95,10.7153]
[1642473428271,6.93101386,140.01,139.96,49.15005527]
[1642473428466,4.07301386,140.01,139.96,52.00705527]
[1642473428665,4.07301386,140.01,139.96,49.15005527]
[1642473428865,4.07301386,140.03,139.97,2.857]
[1642473429464,4.07301386,140.03,139.98,0.25]
[1642473429667,4.07301386,140.03,139.99,42.32418009]
[1642473430266,4.07301386,140.03,140.0,3.106]
[1642473430466,4.07301386,140.03,140.01,6.06439994]
[1642473430666,4.07301386,140.05,140.01,6.06439994]
[1642473430867,4.07301386,140.05,140.02,37.30972855]
[1642473431469,4.07301386,140.05,139.99,10.23]
[1642473432467,8.856,140.05,139.99,10.23]
[1642473432670,44.06690659,140.05,139.99,46.58169301]
[1642473432867,0.25,140.04,139.99,10.23]
[1642473433067,2.856,140.03,139.98,2.856]
[1642473433268,0.25,140.02,139.98,2.856]
[1642473434570,2.856,140.03,139.97,70.74516237]
[1642473434869,0.25,140.02,139.97,70.74516237]
[1642473435069,2.857,140.01,139.97,70.74516237]
[1642473435271,2.857,140.01,139.97,81.45906237]
[1642473435468,2.857,140.03,139.97,81.45906237]
[1642473435670,3.107,140.03,139.97,81.45906237]
[1642473435869,3.107,140.03,139.97,70.74516237]
[1642473436269,46.91286663,140.02,139.95,20.945]
[1642473436470,46.91286663,140.02,139.95,10.23]
[1642473436670,0.25,140.01,139.94,27.6525]
[1642473436870,2.857,140.0,139.94,24.7955]
[1642473437372,0.25,139.99,139.95,37.11655076]
[1642473441873,0.25,139.99,139.93,10.7164]
[1642473442073,3.107,139.99,139.92,4.3258986]
[1642473442877,43.26061749,139.98,139.92,43.53713607]
[1642473443075,71.08,139.96,139.92,40.68013607]
[1642473443276,3.108,139.95,139.92,40.68013607]
[1642473444476,3.108,139.95,139.92,1.4688986]
[1642473444676,13.8298,139.95,139.92,1.4688986]
[1642473445279,19.8298,139.95,139.92,1.4688986]
[1642473445979,65.61710734,139.95,139.92,1.4688986]
[1642473446580,19.8298,139.95,139.92,1.4688986]
[1642473447986,90.9098,139.95,139.92,1.4688986]
[1642473450417,90.9098,139.95,139.93,40.60998073]
[1642473450592,88.0518,139.95,139.93,43.6421807]
[1642473450791,16.9718,139.95,139.93,37.57778076]
[1642473450992,0.25,139.95,139.93,37.57778076]
[1642473451191,13.5784,139.97,139.93,37.57778076]
[1642473451394,0.25,139.96,139.93,37.57778076]
[1642473451995,0.25,139.96,139.94,6.06439994]
[1642473452293,0.25,139.97,139.94,6.06439994]
[1642473452694,10.969,139.98,139.94,6.06439994]
[1642473453300,10.719,139.98,139.94,6.06439994]
[1642473454200,10.7182,139.99,139.94,6.06439994]
[1642473454602,0.25,139.98,139.94,6.06439994]
[1642473455403,0.25,139.99,139.94,6.06439994]
[1642473456604,0.25,139.99,139.94,8.92139994]
[1642473457408,0.25,139.99,139.94,31.91669994]
[1642473458322,1.11692497,140.0,139.94,31.91669994]
[1642473458522,3.97392497,140.0,139.95,0.25]
[1642473458722,1.11692497,140.0,139.95,0.25]
[1642473460727,1.11692497,140.0,139.94,22.9953]
[1642473460925,1.11692497,140.0,139.93,40.43478076]
[1642473460926,0.25,139.99,139.93,40.43478076]
[1642473461328,2.857,139.98,139.93,37.57778076]
[1642473461726,3.108,139.99,139.93,37.57778076]
[1642473463431,2.858,139.99,139.94,0.25]
[1642473463628,3.97392497,140.0,139.94,0.25]
[1642473463830,1.11692497,140.0,139.94,0.25]
[1642473464529,4.07301386,140.02,139.94,1.79548057]
[1642473464728,4.07301386,140.02,139.95,2.857]
[1642473464929,4.07301386,140.02,139.96,57.05022385]
[1642473465130,4.07301386,140.02,139.97,2.857]
[1642473465329,4.07301386,140.02,139.98,0.25]
[1642473465529,4.07301386,140.02,139.99,2.857]
[1642473465728,4.07301386,140.02,140.0,6.06439994]
[1642473465932,2.857,140.04,140.0,6.06439994]
[1642473466131,101.66211386,140.05,140.0,6.06439994]
[1642473466330,0.25,140.04,139.97,23.8103]
[1642473466531,2.857,140.03,139.95,10.23]
[1642473466931,0.25,140.02,139.95,10.23]
[1642473467130,13.5751,140.01,139.95,10.23]
[1642473467330,10.7181,140.01,139.96,46.2262079]
[1642473467530,10.7181,140.01,139.96,45.9762079]
[1642473469332,0.25,140.0,139.96,45.9762079]
[1642473469532,13.5753,139.99,139.96,45.9762079]
[1642473470632,13.5753,139.99,139.97,3.03219997]
[1642473470935,13.5753,139.99,139.96,45.9762079]
[1642473471533,2.857,139.99,139.96,45.9762079]
[1642473472435,4.07301386,140.02,139.97,6.06439994]
[1642473472633,4.07301386,140.02,139.97,6.31439994]
[1642473473036,28.38301386,140.03,139.97,6.31439994]
[1642473473638,39.09881386,140.03,139.97,6.31439994]
[1642473473839,35.0258,140.03,139.97,6.31439994]
[1642473474439,35.0258,140.03,139.97,30.41439994]
[1642473475240,35.0258,140.03,139.97,33.27139994]
[1642473475639,35.0258,140.03,139.98,0.25]
[1642473475840,41.0258,140.03,139.98,0.25]
[1642473476241,35.0258,140.03,139.98,0.25]
[1642473476670,0.25,140.02,139.97,27.207]
[1642473477141,35.0258,140.03,139.97,27.207]
[1642473477341,3.107,140.02,139.97,24.35]
[1642473477543,13.8232,140.02,139.97,24.35]
[1642473478445,13.5732,140.02,139.97,24.35]
[1642473478846,2.857,140.02,139.98,0.25]
[1642473479048,4.07301386,140.04,139.98,0.25]
[1642473480347,10.7137,140.05,139.98,0.25]
[1642473480548,10.7137,140.05,139.98,3.106]
[1642473480749,0.25,140.04,139.99,35.26187798]
[1642473482153,13.8205,140.04,139.99,35.26187798]
[1642473482351,10.9645,140.04,139.99,35.26187798]
[1642473482552,2.856,140.03,139.99,35.26187798]
[1642473482753,0.25,140.02,139.99,35.26187798]
[1642473484293,0.25,140.02,140.0,6.06439994]
[1642473484494,0.25,140.02,139.99,35.26187798]
[1642473485097,0.25,140.02,139.97,24.35]
[1642473485295,2.856,140.03,139.97,24.35]
[1642473486097,8.856,140.03,139.98,35.35048873]
[1642473486298,10.7161,140.02,139.98,35.35048873]
[1642473487497,2.856,140.03,139.98,35.35048873]
[1642473487699,14.78831386,140.04,139.99,0.25]
[1642473488199,10.7153,140.04,139.99,0.25]
[1642473488700,31.07841386,140.05,139.98,35.35048873]
[1642473488898,31.07841386,140.05,139.99,0.25]
[1642473489100,24.1484,140.05,139.99,1.79548057]
[1642473489601,24.1484,140.05,139.99,25.55688057]
[1642473490199,27.0044,140.05,139.99,25.55688057]
[1642473491199,27.0044,140.05,139.99,24.0114]
[1642473491803,2.856,140.05,139.99,23.7614]
[1642473492102,2.856,140.05,139.99,31.0604]
[1642473493205,2.856,140.05,140.0,0.25]
[1642473496737,17.64271386,140.06,140.0,0.25]
[1642473501349,14.78671386,140.06,140.0,0.25]
[1642473501550,10.7137,140.06,140.0,0.25]
[1642473501746,59.89180386,140.06,140.0,0.25]
[1642473502849,10.7137,140.06,140.0,0.25]
[1642473503050,14.78671386,140.06,140.0,0.25]
[1642473503248,4.07301386,140.06,140.0,8.353]
[1642473503452,4.07301386,140.06,140.0,9.89848057]
[1642473503653,4.07301386,140.06,140.01,10.23]
[1642473503853,4.07301386,140.07,140.02,0.25]
[1642473504050,4.07301386,140.07,140.02,41.13050593]
[1642473505052,8.15010869,140.08,140.02,43.98650593]
[1642473505656,8.15010869,140.08,140.02,54.69630593]
[1642473506052,4.07301386,140.08,140.02,56.2417865]
[1642473506252,17.63951386,140.1,140.02,56.2417865]
[1642473506454,22.5001,140.09,140.03,22.886]
[1642473506692,22.7501,140.09,140.03,22.886]
[1642473508353,22.7501,140.09,140.03,33.5954]
[1642473511657,22.7501,140.09,140.03,22.886]
[1642473513160,22.7501,140.09,140.03,33.5953]
[1642473513758,22.7501,140.09,140.03,39.5953]
[1642473513960,22.7501,140.09,140.03,33.5953]
[1642473514559,22.7501,140.09,140.03,10.7093]
[1642473514763,71.08,140.07,140.02,2.856]
[1642473514963,2.856,140.06,139.99,34.9838]
[1642473515260,26.2948,140.06,139.99,34.9838]
[1642473515861,23.4388,140.06,140.0,47.90992145]
[1642473516059,23.4388,140.06,140.0,61.47722145]
[1642473516461,23.4388,140.06,140.0,84.01252145]
[1642473516662,23.4388,140.06,140.01,0.25]
[1642473518662,23.4388,140.06,140.01,10.9609]
[1642473520265,23.4388,140.06,140.01,0.25]
[1642473527173,26.2948,140.06,140.01,0.25]
[1642473527573,37.0078,140.06,140.01,0.25]
[1642473530803,2.03711218,140.05,140.01,0.25]
[1642473533002,73.11711218,140.05,140.0,22.5353]
[1642473533204,3.106,140.04,140.0,22.5353]
[1642473533704,2.856,140.04,140.0,22.5353]
[1642473534005,46.72567748,140.04,140.0,22.5353]
[1642473534204,43.86967748,140.04,140.0,22.5353]
[1642473536705,2.03711218,140.04,140.0,22.5353]
[1642473537609,40.17267675,140.04,140.0,22.5353]
[1642473540311,2.03711218,140.04,140.0,22.5353]
[1642473540710,2.03711218,140.03,140.0,22.5353]
[1642473541409,2.03711218,140.03,140.01,6.06439994]
[1642473541710,2.03711218,140.04,140.0,22.5353]
[1642473541911,8.03711218,140.04,140.0,22.5353]
[1642473542109,2.03711218,140.04,140.0,22.5353]
[1642473543911,8.03711218,140.04,140.0,22.5353]
[1642473544110,2.03711218,140.04,140.0,22.5353]
[1642473546412,2.03711218,140.04,140.01,0.25]
[1642473547311,2.03711218,140.05,140.02,3.03219997]
[1642473548314,8.03711218,140.05,140.02,3.03219997]
[1642473548512,4.89311218,140.05,140.02,3.03219997]
[1642473548714,10.89311218,140.05,140.02,3.03219997]
[1642473549013,4.89311218,140.05,140.02,3.03219997]
[1642473549212,2.03711218,140.04,140.02,3.03219997]
[1642473550818,2.03711218,140.04,140.03,3.03219997]
[1642473551016,2.03711218,140.04,140.0,22.5353]
[1642473558729,2.03711218,140.04,140.01,0.25]
[1642473559329,2.03711218,140.05,140.01,0.25]
[1642473565459,2.03711218,140.05,140.0,22.5353]
[1642473565659,75.97311218,140.05,140.0,22.5353]
[1642473566564,2.03711218,140.04,140.0,22.5353]
[1642473567161,2.03711218,140.04,140.01,0.25]
[1642473567962,73.11711218,140.05,140.01,0.25]
[1642473568163,75.97311218,140.05,140.01,0.25]
[1642473569263,73.11711218,140.05,140.01,0.25]
[1642473571274,73.11711218,140.05,140.0,22.5353]
[1642473571479,39.58075586,140.04,140.0,22.5353]
[1642473572875,75.97311218,140.05,140.0,22.5353]
[1642473573076,81.97311218,140.05,140.0,22.5353]
[1642473573980,75.97311218,140.05,140.0,22.5353]
[1642473574208,73.11711218,140.05,140.0,22.5353]
[1642473576381,73.11711218,140.05,140.01,0.25]
[1642473577482,73.11711218,140.05,140.0,22.5353]
[1642473579583,2.03711218,140.05,140.0,22.5353]
[1642473579786,2.03711218,140.05,140.01,0.25]
[1642473580285,4.07301386,140.08,140.01,0.25]
[1642473580487,4.07301386,140.08,140.02,1.54548057]
[1642473580885,2.856,140.1,140.03,45.41091387]
[1642473581085,2.855,140.16,140.04,10.23]
[1642473581286,2.855,140.16,140.05,0.25]
[1642473581588,2.855,140.16,140.05,10.48]
[1642473581816,48.55515995,140.14,140.06,43.30237034]
[1642473582014,2.855,140.13,140.06,54.00837034]
[1642473582215,2.855,140.13,140.07,0.25]
[1642473582617,27.1933,140.13,140.07,0.25]
[1642473583616,37.9007,140.13,140.07,0.25]
[1642473585118,108.9807,140.13,140.07,0.25]
[1642473585918,0.25,140.12,140.07,0.25]
[1642473586118,73.935,140.11,140.07,0.25]
[1642473586320,73.935,140.11,140.05,0.25]
[1642473586522,73.935,140.11,140.04,2.855]
[1642473586719,73.935,140.11,140.03,13.085]
[1642473586920,41.18766878,140.1,140.04,59.65402257]
[1642473587122,112.26766878,140.1,140.04,59.65402257]
[1642473587322,122.97736878,140.1,140.04,59.65402257]
[1642473587919,122.97736878,140.1,140.05,0.25]
[1642473590324,81.7897,140.1,140.05,0.25]
[1642473590523,71.08,140.1,140.05,0.25]
[1642473590924,2.855,140.11,140.05,0.25]
[1642473592626,13.5638,140.11,140.05,0.25]
[1642473594933,43.19130233,140.1,140.05,0.25]
[1642473597133,53.90100233,140.1,140.01,13.5644]
[1642473597335,26.1795,140.09,140.01,24.7199]
[1642473597736,71.08,140.08,140.0,22.8774]
[1642473597935,43.31565551,140.07,139.98,2.856]
[1642473598135,43.31565551,140.07,139.97,36.68327558]
[1642473598136,71.08,140.06,139.97,36.68327558]
[1642473598336,10.7158,140.03,139.97,36.68327558]
[1642473598536,73.937,140.02,139.97,36.68327558]
[1642473598738,71.08,140.02,139.97,36.68327558]
[1642473599035,2.857,140.03,139.97,36.68327558]
[1642473599440,10.7149,140.03,139.98,0.25]
[1642473600540,81.7949,140.03,139.98,0.25]
[1642473600741,2.857,140.02,139.98,0.25]
[1642473604944,2.857,140.03,139.98,0.25]
[1642473605745,2.857,140.04,139.98,10.9627]
[1642473605949,2.856,140.07,139.98,10.9627]
[1642473606146,2.856,140.08,139.99,26.3424]
[1642473606346,8.856,140.08,140.0,10.48]
[1642473606547,4.05418254,140.09,140.02,42.91221018]
[1642473606752,6.0,140.08,140.02,42.91221018]
[1642473606945,11.90868254,140.09,140.03,0.25]
[1642473607546,61.34444208,140.09,140.03,0.25]
[1642473608271,2.855,140.08,140.03,0.25]
[1642473608471,13.5662,140.08,140.03,0.25]
[1642473611675,13.5662,140.08,140.02,42.91221018]
[1642473612075,0.25,140.07,140.02,42.91221018]
[1642473614276,10.7112,140.08,140.03,0.25]
[1642473614475,10.7112,140.08,140.02,42.91221018]
[1642473614675,2.856,140.07,140.02,42.91221018]
[1642473614876,13.5672,140.08,140.03,0.25]
[1642473616481,10.7112,140.08,140.03,0.25]
[1642473617582,13.5672,140.08,140.03,0.25]
[1642473619886,0.25,140.07,140.02,42.91221018]
[1642473620086,13.5672,140.08,140.02,42.91221018]